bitfinex-derivatives/quotes_BTCF0:USTF0_20241217
["timestamp","ask_amount","ask_price","bid_price","bid_amount"]
[1734476120997,0.16768433,105670.0,105660.0,0.380317]
[1734476121210,0.16768433,105670.0,105660.0,0.741117]
[1734476123809,0.16768433,105670.0,105660.0,0.380317]
[1734476124507,0.16768433,105670.0,105660.0,0.741117]
[1734476135317,0.11449102,105670.0,105660.0,0.741117]
[1734476140212,0.00011946,105680.0,105670.0,0.047313]
[1734476140417,0.3608,105690.0,105680.0,0.047308]
[1734476140620,0.04872211,105700.0,105690.0,0.047304]
[1734476140815,0.16321313,105700.0,105690.0,0.247204]
[1734476141118,0.21960116,105700.0,105690.0,0.247204]
[1734476141317,0.21960116,105700.0,105690.0,0.24729695]
[1734476143611,0.22998656,105700.0,105690.0,0.24729695]
[1734476143808,0.22998656,105700.0,105690.0,0.60809695]
[1734476144115,0.17359853,105700.0,105690.0,0.60809695]
[1734476144318,0.22998656,105700.0,105690.0,0.24729695]
[1734476145118,0.17359853,105700.0,105690.0,0.24729695]
[1734476145312,0.18268456,105700.0,105690.0,0.24729695]
[1734476146013,0.22998356,105700.0,105690.0,0.24729695]
[1734476147521,0.18268456,105700.0,105690.0,0.24729695]
[1734476147716,0.12629653,105700.0,105690.0,0.24729695]
[1734476147915,0.18268456,105700.0,105690.0,0.24729695]
[1734476148416,0.11591113,105700.0,105690.0,0.66448498]
[1734476148623,0.11449102,105700.0,105690.0,0.66448498]
[1734476148819,0.3608,105710.0,105700.0,0.047299]
[1734476149010,0.3608,105710.0,105700.0,0.20258703]
[1734476149615,0.00010141,105720.0,105700.0,0.56338703]
[1734476149814,0.11459243,105720.0,105710.0,0.10368303]
[1734476150210,0.00010141,105720.0,105710.0,0.46448303]
[1734476150611,0.00039,105730.0,105720.0,0.04729]
[1734476150816,8.933e-05,105730.0,105720.0,0.72706606]
[1734476151013,8.933e-05,105730.0,105720.0,1.02706606]
[1734476151324,1.415e-05,105730.0,105720.0,0.72706606]
[1734476151810,1.415e-05,105730.0,105720.0,1.02706606]
[1734476152611,1.415e-05,105730.0,105720.0,1.02718619]
[1734476153917,1.415e-05,105730.0,105720.0,1.12738619]
[1734476154119,1.415e-05,105730.0,105720.0,1.18377422]
[1734476154419,1.415e-05,105730.0,105720.0,1.12738619]
[1734476155925,1.415e-05,105730.0,105720.0,1.18377422]
[1734476156514,1.415e-05,105730.0,105720.0,1.19406622]
[1734476157125,0.00011034,105760.0,105750.0,0.10366503]
[1734476157422,0.11460136,105760.0,105750.0,0.76396503]
[1734476157735,0.11460136,105760.0,105750.0,0.82035306]
[1734476158019,0.11460136,105760.0,105750.0,0.87904422]
[1734476158227,0.00011034,105760.0,105750.0,0.87904422]
[1734476159020,0.00011034,105760.0,105750.0,0.8791633]
[1734476165423,0.00011034,105760.0,105750.0,0.88945797]
[1734476166636,0.11460136,105760.0,105750.0,0.88945797]
[1734476167143,0.11460136,105760.0,105750.0,0.69062969]
[1734476170436,0.11460136,105760.0,105750.0,0.60489608]
[1734476170635,0.11460136,105760.0,105750.0,0.7763633]
[1734476171139,0.00011034,105760.0,105750.0,0.7763633]
[1734476178035,0.00011034,105760.0,105750.0,0.71741268]
[1734476180641,0.00011034,105760.0,105750.0,0.81731268]
[1734476192857,0.00011034,105760.0,105750.0,0.70479608]
[1734476193057,0.00011034,105760.0,105750.0,0.81731268]
[1734476193257,0.08404266,105790.0,105770.0,0.047268]
[1734476193559,0.10052001,105800.0,105790.0,0.047259]
[1734476193760,0.21449102,105800.0,105790.0,0.5205756]
[1734476194254,0.21449102,105800.0,105790.0,0.5206453]
[1734476195543,0.1,105800.0,105790.0,0.5206453]
[1734476196858,0.21449102,105800.0,105790.0,0.5206453]
[1734476197563,0.1,105800.0,105790.0,0.5206453]
[1734476197862,0.3608,105820.0,105810.0,0.04725]
[1734476198159,0.70484337,105830.0,105810.0,0.1035083]
[1734476198359,0.11449102,105820.0,105810.0,0.04725]
[1734476199461,0.11449102,105820.0,105810.0,0.5652083]
[1734476200265,0.11449102,105820.0,105810.0,0.6214666]
[1734476200557,1.25777096,105860.0,105830.0,0.047241]
[1734476200558,0.3608,105860.0,105830.0,0.047241]
[1734476200760,0.408024,105870.0,105850.0,0.4642893]
[1734476200948,0.408024,105870.0,105860.0,0.0562583]
[1734476201363,0.4272829,105870.0,105860.0,0.0562583]
[1734476201563,0.4272829,105870.0,105860.0,0.05634323]
[1734476201860,0.408024,105870.0,105860.0,0.05634323]
[1734476202060,0.408024,105870.0,105860.0,8.493e-05]
[1734476202263,0.047224,105870.0,105860.0,8.493e-05]
[1734476202660,0.047224,105870.0,105860.0,0.08567101]
[1734476203254,0.36089159,105880.0,105860.0,0.08567101]
[1734476203452,0.41843441,105880.0,105860.0,0.13289801]
[1734476204058,0.41843441,105880.0,105870.0,0.08558608]
[1734476204364,0.41843441,105880.0,105870.0,0.047225]
[1734476204961,0.05763441,105880.0,105870.0,0.047225]
[1734476207359,0.01041341,105880.0,105870.0,0.047225]
[1734476210462,0.37121341,105880.0,105870.0,0.047225]
[1734476211267,0.41843441,105880.0,105870.0,0.047225]
[1734476211562,0.41843441,105880.0,105860.0,0.44647101]
[1734476211563,0.04249825,105870.0,105860.0,0.04731393]
[1734476211767,0.48888433,105870.0,105860.0,8.493e-05]
[1734476211968,0.70329825,105870.0,105860.0,8.493e-05]
[1734476212171,0.047229,105860.0,105850.0,0.028353]
[1734476212473,0.696329,105860.0,105850.0,0.028353]
[1734476212671,0.047234,105850.0,105840.0,0.047237]
[1734476213276,0.047234,105850.0,105840.0,0.04732951]
[1734476217273,0.14275209,105880.0,105870.0,0.047225]
[1734476217274,0.00150927,105880.0,105870.0,0.047225]
[1734476217578,0.00150927,105880.0,105870.0,0.028345]
[1734476217877,0.00150927,105880.0,105870.0,0.389145]
[1734476218580,0.00150927,105880.0,105870.0,0.028345]
[1734476218880,0.00150927,105880.0,105870.0,0.389145]
[1734476219070,0.00150927,105880.0,105870.0,0.47473108]
[1734476219783,0.00150927,105880.0,105870.0,0.389145]
[1734476220471,0.00150927,105880.0,105870.0,0.47482498]
[1734476220969,0.00150927,105880.0,105870.0,0.3892389]
[1734476221686,0.00150927,105880.0,105870.0,0.47482498]
[1734476222376,0.00288872,105880.0,105870.0,0.47482498]
[1734476228783,0.5181591,105900.0,105880.0,0.047218]
[1734476228975,0.5181591,105900.0,105890.0,0.1074]
[1734476229378,0.60173278,105900.0,105890.0,0.1074]
[1734476230483,0.24093278,105900.0,105890.0,0.1074]
[1734476230667,0.24093278,105900.0,105890.0,0.154616]
[1734476231074,0.1573591,105900.0,105890.0,0.154616]
[1734476234590,0.1,105900.0,105890.0,0.154616]
[1734476235681,0.1,105900.0,105890.0,0.515416]
[1734476236286,0.1,105900.0,105890.0,0.60100208]
[1734476236808,0.10129,105900.0,105890.0,0.60100208]
[1734476237378,0.10129,105900.0,105890.0,0.515416]
[1734476238784,0.10129,105900.0,105890.0,0.60100208]
[1734476239783,0.10129,105900.0,105890.0,0.515416]
[1734476239991,0.10129,105900.0,105890.0,0.408016]
[1734476242792,0.509305,105900.0,105890.0,0.047216]
[1734476243291,0.148505,105900.0,105890.0,0.047216]
[1734476243684,0.509305,105900.0,105890.0,0.047216]
[1734476244383,0.148505,105900.0,105890.0,0.047216]
[1734476244590,0.509305,105900.0,105890.0,0.047216]
[1734476246192,0.509305,105900.0,105890.0,0.10335466]
[1734476246579,0.148505,105900.0,105890.0,0.10335466]
[1734476246779,0.509305,105900.0,105890.0,0.10335466]
[1734476247298,0.148505,105900.0,105890.0,0.10335466]
[1734476248579,0.509305,105900.0,105890.0,0.10335466]
[1734476256200,0.509305,105900.0,105890.0,0.047216]
[1734476256997,0.509305,105900.0,105890.0,0.10335466]
[1734476257504,0.509305,105900.0,105890.0,0.047216]
[1734476261007,0.509305,105900.0,105880.0,0.73661973]
[1734476261008,0.04722,105890.0,105880.0,0.36690407]
[1734476261306,0.04722,105890.0,105880.0,0.42304273]
[1734476261307,0.35493428,105890.0,105880.0,0.42304273]
[1734476261506,0.04722,105890.0,105880.0,0.42304273]
[1734476261808,0.04851,105890.0,105880.0,0.42304273]
[1734476262195,0.0101683,105910.0,105880.0,1.54476005]
[1734476262396,0.01141744,105920.0,105910.0,0.047211]
[1734476262607,0.4181566,105940.0,105920.0,0.047206]
[1734476262800,0.4181566,105940.0,105930.0,0.05613866]
[1734476263102,0.3709566,105940.0,105930.0,0.10334066]
[1734476263305,0.3709566,105940.0,105930.0,0.1034532]
[1734476263500,0.3608,105940.0,105930.0,0.1034532]
[1734476265100,0.41788841,105950.0,105930.0,0.0562512]
[1734476265302,0.3608,105950.0,105940.0,0.20753566]
[1734476265703,0.3608,105950.0,105940.0,0.31483566]
[1734476266105,0.3608,105950.0,105940.0,0.258697]
[1734476267209,0.40888304,105960.0,105940.0,0.258697]
[1734476267407,0.41702612,105960.0,105940.0,0.358597]
[1734476268516,0.41702612,105960.0,105940.0,0.44405769]
[1734476269104,0.41702612,105960.0,105940.0,0.3114]
[1734476269305,0.41702612,105960.0,105950.0,0.047193]
[1734476269908,0.00010904,105970.0,105950.0,0.49345369]
[1734476270115,0.00010904,105970.0,105960.0,0.49344869]
[1734476270502,0.00010904,105970.0,105960.0,0.407988]
[1734476274220,0.04729304,105970.0,105960.0,0.407988]
[1734476275310,0.00010904,105970.0,105960.0,0.407988]
[1734476277213,0.00139904,105970.0,105960.0,0.407988]
[1734476277812,0.04858104,105970.0,105960.0,0.407988]
[1734476280321,0.00139904,105970.0,105960.0,0.407988]
[1734476281119,0.04858304,105970.0,105960.0,0.407988]
[1734476285421,0.14618304,105970.0,105960.0,0.407988]
[1734476286723,0.14618304,105970.0,105960.0,0.3608]
[1734476288820,0.047189,105960.0,105950.0,0.46406062]
[1734476289015,0.048479,105960.0,105950.0,0.46406062]
[1734476289216,0.048479,105960.0,105950.0,0.40799]
[1734476289528,0.048479,105960.0,105950.0,0.46406062]
[1734476290221,0.00129,105960.0,105950.0,0.46406062]
[1734476290521,0.00258,105960.0,105950.0,0.46406062]
[1734476290723,0.049769,105960.0,105950.0,0.46406062]
[1734476295722,0.049769,105960.0,105950.0,0.40799]
[1734476298329,0.049769,105960.0,105950.0,0.46406062]
[1734476298727,0.049769,105960.0,105950.0,0.40799]
[1734476300519,0.00258,105960.0,105950.0,0.46406062]
[1734476302231,0.15454105,105970.0,105950.0,0.46406062]
[1734476302430,0.15454105,105970.0,105960.0,0.3608]
[1734476303331,0.15454105,105970.0,105960.0,0.407988]
[1734476304231,0.05694105,105970.0,105960.0,0.407988]
[1734476306133,0.66826727,105980.0,105960.0,0.407988]
[1734476306439,0.047186,105970.0,105960.0,0.407988]
[1734476309934,0.047186,105970.0,105960.0,0.047188]
[1734476310131,0.047186,105970.0,105960.0,0.407988]
[1734476310332,0.047188,105960.0,105950.0,0.407992]
[1734476313745,0.047188,105960.0,105950.0,0.3608]
[1734476314337,0.143388,105960.0,105950.0,0.3608]
[1734476316841,0.143388,105960.0,105950.0,0.407993]
[1734476317040,0.56025862,105960.0,105940.0,0.6722]
[1734476317235,0.047193,105950.0,105940.0,0.719397]
[1734476319640,0.047193,105950.0,105940.0,0.507897]
[1734476322842,0.04853425,105950.0,105940.0,0.507897]
[1734476324653,0.04853425,105950.0,105940.0,0.56396762]
[1734476324951,0.04853425,105950.0,105940.0,0.507897]
[1734476325654,0.04853425,105950.0,105940.0,0.56396762]
[1734476326351,0.04853425,105950.0,105940.0,0.4607]
[1734476327648,0.40933425,105950.0,105940.0,0.0999]
[1734476327857,0.04853425,105950.0,105940.0,0.0999]
[1734476328152,0.40933425,105950.0,105940.0,0.0999]
[1734476328452,0.04853425,105950.0,105940.0,0.0999]
[1734476329047,0.40933425,105950.0,105940.0,0.0999]
[1734476329555,0.04853425,105950.0,105940.0,0.0999]
[1734476330062,0.40933425,105950.0,105940.0,0.0999]
[1734476330451,0.04853425,105950.0,105940.0,0.0999]
[1734476330848,0.00964457,105960.0,105940.0,1.28971186]
[1734476331158,0.00152413,105980.0,105970.0,0.047184]
[1734476331351,0.507971,106000.0,105980.0,0.047176]
[1734476331656,0.507971,106000.0,105990.0,0.05607062]
[1734476331955,0.507971,106000.0,105990.0,0.047175]
[1734476332150,0.507971,106000.0,105990.0,0.1325695]
[1734476332151,0.1,106000.0,105990.0,0.1325695]
[1734476332350,0.1,106000.0,105990.0,0.4933695]
[1734476334157,0.1,106000.0,105990.0,0.5899695]
[1734476340856,0.1,106000.0,105990.0,0.59185647]
[1734476347061,0.1,106000.0,105990.0,0.60411036]
[1734476350077,0.10129,106000.0,105990.0,0.60411036]
[1734476351373,0.10129,106000.0,105990.0,0.96491036]
[1734476351869,0.148461,106000.0,105990.0,0.96491036]
[1734476352866,0.10129,106000.0,105990.0,0.96491036]
[1734476353465,0.148461,106000.0,105990.0,0.96491036]
[1734476353972,0.148461,106000.0,105990.0,0.93553996]
[1734476354777,0.148461,106000.0,105990.0,0.92336217]
[1734476355474,0.10129,106000.0,105990.0,0.92336217]
[1734476355875,0.1492295,106000.0,105990.0,0.92336217]
[1734476357163,0.14975521,106000.0,105990.0,0.92336217]
[1734476358770,0.14975521,106000.0,105990.0,0.77073807]
[1734476358981,0.09672351,106000.0,105990.0,0.82676217]
[1734476369279,0.09672351,106000.0,105990.0,0.77073807]
[1734476369984,0.09672351,106000.0,105990.0,0.82676217]
[1734476370685,0.09672351,106000.0,105990.0,0.77073807]
[1734476370881,0.09672351,106000.0,105990.0,0.04913807]
[1734476371377,0.09672351,106000.0,105990.0,0.00196307]
[1734476371581,0.15274761,106000.0,105990.0,0.00196307]
[1734476372278,0.51354761,106000.0,105990.0,0.00196307]
[1734476377284,0.56957171,106000.0,105990.0,0.00196307]
[1734476377585,0.92559581,106000.0,105990.0,7e-08]
[1734476377789,0.047184,105970.0,105960.0,0.00141552]
[1734476377987,0.1032081,105970.0,105960.0,0.00141552]
[1734476378179,0.46659231,105970.0,105960.0,0.00141552]
[1734476378683,0.76805951,105970.0,105960.0,0.00012131]
[1734476379483,0.047193,105950.0,105940.0,0.3608]
[1734476379683,0.0486602,105950.0,105930.0,0.74570441]
[1734476379986,0.047197,105940.0,105930.0,0.74759244]
[1734476380181,0.04978121,105940.0,105930.0,0.74759244]
[1734476380493,0.04978121,105940.0,105930.0,0.74766667]
[1734476380683,0.05124841,105940.0,105930.0,0.74766667]
[1734476382176,0.05124841,105940.0,105930.0,0.51136126]
[1734476382397,0.46807251,105940.0,105930.0,0.10336226]
[1734476382587,0.41204841,105940.0,105930.0,0.10336226]
[1734476382982,0.46807251,105940.0,105930.0,0.10336226]
[1734476384997,0.4830513,105940.0,105930.0,0.10336226]
[1734476387391,0.5390754,105940.0,105930.0,0.00196226]
[1734476388488,0.047206,105920.0,105910.0,0.64297076]
[1734476388688,0.0486732,105920.0,105910.0,0.65485915]
[1734476389196,0.05125741,105920.0,105910.0,0.65485915]
[1734476389696,0.05125741,105920.0,105910.0,0.65495552]
[1734476391206,0.05125741,105920.0,105910.0,0.63591539]
[1734476392088,0.05125741,105920.0,105910.0,0.23478513]
[1734476392297,0.10728151,105920.0,105910.0,0.23478513]
[1734476392603,0.10728151,105920.0,105910.0,0.21918476]
[1734476392902,0.46808151,105920.0,105910.0,0.21918476]
[1734476393090,0.52410561,105920.0,105910.0,0.21918476]
[1734476393298,0.52410561,105920.0,105910.0,0.01198476]
[1734476394198,0.53941698,105920.0,105910.0,0.01198476]
[1734476396195,0.63441698,105920.0,105910.0,0.01198476]
[1734476397202,0.69044108,105920.0,105890.0,0.2051]
[1734476397502,0.4640391,105900.0,105890.0,0.18622]
[1734476397702,0.4655063,105900.0,105890.0,0.19622]
[1734476398405,0.46809051,105900.0,105890.0,0.19628948]
[1734476398889,0.52411461,105900.0,105890.0,0.19628948]
[1734476399404,0.46809051,105900.0,105890.0,0.11516948]
[1734476399702,0.10729051,105900.0,105890.0,0.11516948]
[1734476399904,0.46809051,105900.0,105890.0,0.11516948]
[1734476400308,0.52411461,105900.0,105890.0,0.01006948]
[1734476400505,0.047224,105880.0,105860.0,0.01849099]
[1734476400699,0.4640521,105870.0,105860.0,0.15132228]
[1734476400907,0.4655193,105870.0,105860.0,0.11408928]
[1734476401202,0.46810351,105870.0,105860.0,0.11408928]
[1734476401505,0.41207941,105870.0,105860.0,0.11416604]
[1734476401703,0.46810351,105870.0,105860.0,0.01196604]
[1734476402000,0.49771128,105870.0,105860.0,0.01196604]
[1734476402406,0.58334315,105870.0,105860.0,0.01196604]
[1734476402592,0.68304315,105870.0,105860.0,0.01196604]
[1734476403399,0.51177941,105870.0,105850.0,0.13872004]
[1734476403600,0.00405141,105870.0,105860.0,0.01]
[1734476403796,7.403e-05,105880.0,105870.0,0.047228]
[1734476404010,7.403e-05,105880.0,105870.0,0.49365987]
[1734476404202,7.403e-05,105880.0,105870.0,0.708028]
[1734476404709,0.00136884,105880.0,105870.0,0.70809641]
[1734476405412,0.00136884,105880.0,105870.0,0.40809641]
[1734476405613,0.00136884,105880.0,105870.0,0.70809641]
[1734476407809,0.00136884,105880.0,105870.0,0.40809641]
[1734476410513,0.00242664,105880.0,105870.0,0.40809641]
[1734476412409,0.00242664,105880.0,105870.0,0.04729641]
[1734476413004,0.00242664,105880.0,105870.0,0.40809641]
[1734476413204,0.00242664,105880.0,105870.0,0.04729641]
[1734476413403,0.00242664,105880.0,105870.0,0.40809641]
[1734476413612,0.00242664,105880.0,105870.0,0.04729641]
[1734476413812,0.00242664,105880.0,105870.0,0.40809641]
[1734476415211,0.00242664,105880.0,105870.0,0.04729641]
[1734476415415,0.00242664,105880.0,105870.0,0.40809641]
[1734476416011,0.00242664,105880.0,105870.0,0.42244037]
[1734476417310,0.00242664,105880.0,105870.0,0.06164037]
[1734476418516,0.01186664,105880.0,105870.0,0.06164037]
[1734476418707,0.01186664,105880.0,105870.0,0.40809641]
[1734476420012,0.10158664,105880.0,105870.0,0.40809641]
[1734476420319,0.17524664,105880.0,105870.0,0.40809641]
[1734476420915,0.22246964,105880.0,105870.0,0.04729641]
[1734476421109,0.32156964,105880.0,105870.0,0.04729641]
[1734476421315,0.32911964,105880.0,105870.0,0.04729641]
[1734476422320,0.32911964,105880.0,105870.0,6.841e-05]
[1734476423515,0.68991964,105880.0,105870.0,6.841e-05]
[1734476423912,0.77555151,105880.0,105870.0,6.841e-05]
[1734476424218,0.047228,105870.0,105860.0,0.01]
[1734476424521,0.50618061,105870.0,105860.0,0.01]
[1734476425216,0.59181248,105870.0,105860.0,0.01006101]
[1734476425420,0.59181248,105870.0,105850.0,0.39921701]
[1734476425718,0.04723,105860.0,105850.0,0.39921701]
[1734476425920,0.04723,105860.0,105850.0,0.40921701]
[1734476426310,0.04723,105860.0,105850.0,0.04841701]
[1734476426611,0.04958261,105860.0,105850.0,0.04841701]
[1734476427416,0.00235261,105860.0,105850.0,0.49484888]
[1734476429013,0.18044403,105880.0,105870.0,0.047225]
[1734476429214,0.18044403,105880.0,105870.0,1.16445687]
[1734476429424,0.16534403,105880.0,105870.0,1.25008874]
[1734476429724,0.16534403,105880.0,105870.0,1.45388874]
[1734476430413,0.16534403,105880.0,105870.0,1.36825687]
[1734476431108,0.11226456,105880.0,105870.0,1.36825687]
[1734476431514,0.11226456,105880.0,105870.0,1.06825687]
[1734476432119,0.11226456,105880.0,105870.0,1.0683309]
[1734476432324,0.11341456,105880.0,105870.0,1.1711309]
[1734476432917,0.11341456,105880.0,105870.0,1.25676277]
[1734476433125,0.0151,105900.0,105890.0,0.047216]
[1734476433419,0.00141702,105910.0,105900.0,0.047212]
[1734476433619,0.00141702,105910.0,105900.0,0.77947574]
[1734476434225,0.01723702,105910.0,105900.0,0.77947574]
[1734476434415,0.03860702,105910.0,105900.0,0.69384387]
[1734476434615,0.03860702,105910.0,105900.0,0.77947574]
[1734476436225,0.03860702,105910.0,105900.0,0.88037574]
[1734476437821,0.03860702,105910.0,105900.0,0.709112]
[1734476438023,0.03860702,105910.0,105900.0,0.79474387]
[1734476440226,0.03860702,105910.0,105900.0,0.80780002]
[1734476443727,0.03860702,105910.0,105900.0,0.70690002]
[1734476444426,0.00427779,105910.0,105900.0,0.70690002]
[1734476445328,0.00427779,105910.0,105900.0,0.69384387]
[1734476450326,0.00427779,105910.0,105900.0,0.59094387]
[1734476450522,0.00427779,105910.0,105900.0,0.68564387]
[1734476454424,0.00427779,105910.0,105900.0,0.49364387]
[1734476456031,0.00811484,105910.0,105900.0,0.49364387]
[1734476457145,0.10961484,105910.0,105900.0,0.49364387]
[1734476458937,0.047212,105900.0,105890.0,0.408016]
[1734476459139,0.245312,105900.0,105890.0,0.3608]
[1734476459340,0.245312,105900.0,105890.0,0.44643187]
[1734476459531,0.245312,105900.0,105890.0,0.08563187]
[1734476459733,0.245312,105900.0,105880.0,0.50580694]
[1734476459926,0.252862,105900.0,105880.0,0.3608]
[1734476460127,0.047218,105890.0,105870.0,0.50514645]
[1734476460542,0.047221,105880.0,105870.0,0.01007403]
[1734476460837,0.408021,105880.0,105870.0,0.01007403]
[1734476461243,0.502021,105880.0,105870.0,0.01007403]
[1734476462533,0.502641,105880.0,105870.0,0.01007403]
[1734476463034,0.141841,105880.0,105870.0,0.01007403]
[1734476463235,0.09462,105880.0,105870.0,0.01007403]
[1734476463442,0.09462,105880.0,105870.0,0.37087403]
[1734476464236,0.09462,105880.0,105870.0,0.01007403]
[1734476465045,0.00062,105880.0,105870.0,0.5037309]
[1734476465241,0.00062,105880.0,105870.0,0.5989309]
[1734476465438,0.00062,105880.0,105870.0,0.6944309]
[1734476468045,0.00062,105880.0,105870.0,0.60879903]
[1734476468347,0.00062,105880.0,105870.0,0.6944309]
[1734476468737,0.00062,105880.0,105870.0,0.60879903]
[1734476470247,0.00062,105880.0,105870.0,0.51329903]
[1734476470639,0.00062,105880.0,105870.0,0.46607403]
[1734476471544,0.00062,105880.0,105870.0,0.10527403]
[1734476472248,0.00062,105880.0,105870.0,0.46607403]
[1734476474339,0.00062,105880.0,105870.0,0.10527403]
[1734476475049,0.047841,105880.0,105870.0,0.01007403]
[1734476478647,0.408641,105880.0,105870.0,0.01007403]
[1734476479154,0.416191,105880.0,105870.0,0.01007403]
[1734476479755,0.80374768,105880.0,105870.0,0.01007403]
[1734476480842,0.80374768,105880.0,105870.0,1e-08]
[1734476481052,0.80374768,105880.0,105850.0,0.610733]
[1734476481053,0.047229,105860.0,105850.0,0.408033]
[1734476481252,0.047229,105860.0,105850.0,0.418033]
[1734476481455,0.054779,105860.0,105850.0,0.01]
[1734476481660,0.150179,105860.0,105850.0,0.01]
[1734476481847,0.15210381,105860.0,105850.0,0.01]
[1734476482056,0.51290381,105860.0,105850.0,0.01]
[1734476482253,0.60910381,105860.0,105850.0,0.01]
[1734476482459,0.60975381,105860.0,105850.0,0.01]
[1734476483852,0.69538568,105860.0,105850.0,0.01]
[1734476484059,0.99538568,105860.0,105850.0,0.01]
[1734476485157,1.00745533,105860.0,105850.0,0.01]
[1734476485360,0.047238,105840.0,105830.0,0.408041]
[1734476485560,0.047238,105840.0,105830.0,0.418041]
[1734476485970,0.15006281,105840.0,105830.0,0.01]
[1734476486760,0.51086281,105840.0,105830.0,0.01]
[1734476487165,0.51215831,105840.0,105830.0,0.01]
[1734476488451,0.15135831,105840.0,105830.0,0.01]
[1734476489363,0.00322031,105840.0,105830.0,0.418043]
[1734476489558,0.00322031,105840.0,105830.0,0.399163]
[1734476489758,0.00322031,105840.0,105830.0,0.409163]
[1734476492570,0.10302031,105840.0,105830.0,0.409163]
[1734476492955,0.10302031,105840.0,105830.0,0.01]
[1734476493365,0.10302031,105840.0,105830.0,0.057243]
[1734476494762,0.00426643,105840.0,105830.0,0.418043]
[1734476494967,0.00426643,105840.0,105830.0,0.50367487]
[1734476495360,0.00426643,105840.0,105830.0,0.60407487]
[1734476497468,0.00426643,105840.0,105830.0,0.518443]
[1734476497672,0.00426643,105840.0,105830.0,0.60407487]
[1734476498582,0.00426643,105840.0,105830.0,1.22355944]
[1734476498974,0.00426643,105840.0,105830.0,0.60407487]
[1734476500675,0.00426643,105840.0,105830.0,1.22412989]
[1734476501762,0.00426643,105840.0,105830.0,0.60407487]
[1734476503474,0.00426643,105840.0,105830.0,1.22442257]
[1734476504975,0.00426643,105840.0,105830.0,1.13920386]
[1734476505277,0.00426643,105840.0,105830.0,0.518443]
[1734476505976,0.00755,105850.0,105840.0,0.04192042]
[1734476506179,0.00755,105850.0,105840.0,1.12525139]
[1734476506367,0.0151,105850.0,105840.0,1.12525139]
[1734476506682,0.0151,105850.0,105840.0,0.50432042]
[1734476507382,0.0151,105850.0,105840.0,0.408038]
[1734476507672,0.0151,105850.0,105840.0,1.02913947]
[1734476507881,0.1081,105850.0,105840.0,0.408038]
[1734476511481,0.12009271,105850.0,105840.0,0.408038]
[1734476511882,0.11254271,105850.0,105840.0,0.408038]
[1734476512986,0.12009271,105850.0,105840.0,0.408038]
[1734476514472,0.12009271,105850.0,105840.0,1.02913947]
[1734476514682,0.21719271,105850.0,105840.0,1.02913947]
[1734476515970,0.21719271,105850.0,105840.0,0.408038]
[1734476515971,0.27339445,105850.0,105840.0,0.408038]
[1734476517079,0.27339445,105850.0,105840.0,1.02913947]
[1734476518183,0.21719271,105850.0,105840.0,1.02913947]
[1734476518387,0.21719271,105850.0,105840.0,0.408038]
[1734476519584,0.21719271,105850.0,105840.0,1.02913947]
[1734476520085,0.21719271,105850.0,105840.0,0.408038]
[1734476520475,0.35007453,105850.0,105840.0,0.408038]
[1734476520678,0.35007453,105850.0,105840.0,1.02913947]
[1734476521083,0.35007453,105850.0,105840.0,0.408038]
[1734476521480,0.35007453,105850.0,105840.0,1.02913947]
[1734476522486,0.35007453,105850.0,105840.0,0.408038]
[1734476524288,0.35007453,105850.0,105840.0,0.59386678]
[1734476524680,0.71087453,105850.0,105840.0,1.21496825]
[1734476524986,0.71087453,105850.0,105840.0,0.59388678]
[1734476525192,0.71087453,105850.0,105840.0,1.21498825]
[1734476525388,0.62522671,105850.0,105840.0,1.21498825]
[1734476525590,0.35007453,105850.0,105840.0,1.21498825]
[1734476525794,0.35007453,105850.0,105840.0,0.64945947]
[1734476526298,0.21719271,105850.0,105840.0,0.62110147]
[1734476526585,0.21719271,105850.0,105840.0,0.66833947]
[1734476526988,0.30284053,105850.0,105840.0,0.66833947]
[1734476527385,0.66364053,105850.0,105840.0,0.66833947]
[1734476527585,0.66364053,105850.0,105840.0,0.047238]
[1734476527986,0.21719271,105850.0,105840.0,0.047238]
[1734476528182,0.02709271,105850.0,105840.0,1.02913947]
[1734476528390,0.02709271,105850.0,105840.0,0.66860582]
[1734476528593,0.00367288,105850.0,105840.0,0.582958]
[1734476529795,0.01122288,105850.0,105840.0,1.20476166]
[1734476530296,0.01122288,105850.0,105840.0,1.30276166]
[1734476531796,0.01122288,105850.0,105840.0,1.38840948]
[1734476532099,0.00141743,105880.0,105870.0,0.047225]
[1734476532285,0.00141743,105880.0,105870.0,0.759945]
[1734476532898,0.00141743,105880.0,105870.0,0.961045]
[1734476533189,0.01651743,105880.0,105870.0,0.9611357]
[1734476533896,0.0280176,105880.0,105870.0,0.6003357]
[1734476534096,0.0280176,105880.0,105870.0,0.5719907]
[1734476534291,0.0280176,105880.0,105870.0,0.2584157]
[1734476534486,0.0280176,105880.0,105870.0,0.6192157]
[1734476534694,0.01651743,105880.0,105870.0,0.6192157]
[1734476537489,0.01651743,105880.0,105870.0,0.2584157]
[1734476537796,0.01651743,105880.0,105870.0,0.6192157]
[1734476538995,0.06373743,105880.0,105870.0,0.5719907]
[1734476539796,0.06232,105880.0,105870.0,0.5719907]
[1734476539997,0.0151,105880.0,105870.0,0.5719907]
[1734476540295,0.0151,105880.0,105870.0,0.6192157]
[1734476542396,0.0151,105880.0,105870.0,0.67537895]
[1734476542996,0.0151,105880.0,105870.0,0.6192157]
[1734476544299,0.0151,105880.0,105870.0,0.67537895]
[1734476545703,0.0151,105880.0,105870.0,0.6192157]
[1734476545904,0.06232,105880.0,105870.0,0.6192157]
[1734476548904,0.06232,105880.0,105870.0,0.3708907]
[1734476549107,0.82532,105880.0,105870.0,0.0100907]
[1734476549298,0.67818325,105880.0,105870.0,0.0100907]
[1734476549907,0.0151,105880.0,105870.0,0.46418825]
[1734476550113,0.06232,105880.0,105870.0,0.057225]
[1734476550408,0.06232,105880.0,105870.0,0.418025]
[1734476550907,0.06232,105880.0,105870.0,0.3708]
[1734476551208,0.1746465,105880.0,105870.0,0.3708]
[1734476551404,0.21128325,105880.0,105870.0,0.3708]
[1734476552505,0.15512,105880.0,105870.0,0.3708]
[1734476552910,0.16173,105880.0,105870.0,0.3708]
[1734476553304,0.21789325,105880.0,105870.0,0.3708]
[1734476553617,0.02171,105880.0,105870.0,0.418025]
[1734476553909,0.0151,105880.0,105870.0,0.516425]
[1734476554110,0.06232,105880.0,105870.0,0.516425]
[1734476555313,0.11848325,105880.0,105870.0,0.516425]
[1734476555513,0.06232,105880.0,105870.0,0.516425]
[1734476555815,0.11848325,105880.0,105870.0,0.01]
[1734476556013,0.06232,105880.0,105870.0,0.3708]
[1734476556217,0.16102,105880.0,105870.0,0.3708]